fUSD/lending_fUSD_20240119
["ID","MTS","AMOUNT","RATE_DAILY","PERIOD"]
[312131157,1705665051972,-500.0,0.00022999,2]
[312131158,1705665051983,-505.289751,0.00022999,2]
[312131159,1705665051994,-500.0,0.00022999,2]
[312131160,1705665052005,-500.0,0.00022999,2]
[312131161,1705665052018,-500.0,0.00022999,2]
[312131162,1705665052029,-500.0,0.00022999,2]
[312131163,1705665052041,-333.4584115,0.00022999,2]
[312131164,1705665052053,-502.23054908,0.00022999,2]
[312131165,1705665052065,-462.00015054,0.00022999,2]
[312131166,1705665052076,-500.0,0.00022999,2]
[312131167,1705665052087,-500.0,0.00022999,2]
[312131168,1705665052098,-500.0,0.00022999,2]
[312131169,1705665052110,-500.0,0.00022999,2]
[312131170,1705665052121,-500.0,0.00022999,2]
[312131171,1705665052132,-500.0,0.00022999,2]
[312131172,1705665052143,-500.0,0.00022999,2]
[312131173,1705665052155,-500.0,0.00022999,2]
[312131174,1705665052167,-500.0,0.00022999,2]
[312131175,1705665052178,-555.05546174,0.00022999,2]
[312131176,1705665052189,-500.0,0.00022999,2]
[312131177,1705665052199,-500.0,0.00022999,2]
[312131178,1705665052210,-739.93,0.00022999,2]
[312131179,1705665052223,-500.0,0.00022999,2]
[312131180,1705665052235,-500.0,0.00022999,2]
[312131181,1705665052245,-506.15769052,0.00022999,2]
[312131182,1705665052257,-805.58,0.00022999,2]
[312131183,1705665052268,-588.64771779,0.00022999,2]
[312131184,1705665052279,-500.0,0.00022999,2]
[312131185,1705665052290,-646.33,0.00022999,2]
[312131186,1705665052300,-503.86205894,0.00022999,2]
[312131187,1705665052311,-500.0,0.00022999,2]
[312131188,1705665052322,-500.0,0.00022999,2]
[312131189,1705665052333,-500.0,0.00022999,2]
[312131190,1705665052343,-500.0,0.00022999,2]
[312131191,1705665052354,-500.0,0.00022999,2]
[312131192,1705665052365,-749.34,0.00022999,2]
[312131193,1705665052375,-500.0,0.00022999,2]
[312131194,1705665052386,-500.0,0.00022999,2]
[312131195,1705665052397,-510.87968851,0.00022999,2]
[312131196,1705665052408,-510.24209489,0.00022999,2]
[312131197,1705665052419,-500.0,0.00022999,7]
[312131198,1705665052432,-500.0,0.00022999,2]
[312131199,1705665052443,-797.58,0.00022999,2]
[312131200,1705665052455,-500.0,0.00022999,2]
[312131201,1705665052465,-500.0,0.00022999,2]
[312131202,1705665052475,-500.0,0.00022999,2]
[312131203,1705665052486,-500.0,0.00022999,2]
[312131204,1705665052497,-752.29,0.00022999,2]
[312131205,1705665052508,-752.29,0.00022999,2]
[312131206,1705665052520,-752.29,0.00022999,2]
[312131207,1705665052531,-752.29,0.00022999,2]
[312131208,1705665052542,-943.44,0.00022999,2]
[312131209,1705665052553,-752.29,0.00022999,2]
[312131210,1705665052563,-752.29,0.00022999,2]
[312131211,1705665052574,-501.72206016,0.00022999,2]
[312131212,1705665052585,-752.29,0.00022999,2]
[312131213,1705665052595,-752.29,0.00022999,2]
[312131214,1705665052606,-752.29,0.00022999,2]
[312131215,1705665052618,-752.29,0.00022999,2]
[312131216,1705665052630,-752.29,0.00022999,2]
[312131217,1705665052641,-752.29,0.00022999,2]
[312131218,1705665052653,-752.29,0.00022999,2]
[312131219,1705665052664,-752.29,0.00022999,2]
[312131220,1705665052676,-752.29,0.00022999,2]
[312131221,1705665052686,-752.29,0.00022999,2]
[312131222,1705665052698,-752.29,0.00022999,2]
[312131223,1705665052709,-500.0,0.00022999,2]
[312131224,1705665052720,-752.29,0.00022999,2]
[312131225,1705665052732,-752.29,0.00022999,2]
[312131226,1705665052743,-563.77,0.00022999,2]
[312131227,1705665052754,-752.29,0.00022999,2]
[312131228,1705665052766,-752.29,0.00022999,2]
[312131229,1705665052777,-752.3406903,0.00022999,2]
[312131230,1705665052788,-500.0,0.00022999,2]
[312131231,1705665052799,-221.6514265,0.00022999,2]
[312131232,1705665052810,-503.84188726,0.00022999,2]
[312131233,1705665052821,-1159.97,0.00022999,2]
[312131234,1705665052832,-500.0,0.00022999,2]
[312131235,1705665052843,-505.54494631,0.00022999,2]
[312131236,1705665052854,-500.0,0.00022999,2]
[312131237,1705665052865,-912.54,0.00022999,2]
[312131238,1705665052875,-500.0,0.00022999,2]
[312131239,1705665052886,-502.67276992,0.00022999,2]
[312131240,1705665052897,-500.0,0.00022999,2]
[312131241,1705665052908,-911.37,0.00022999,2]
[312131242,1705665052919,-500.0,0.00022999,2]
[312131243,1705665052930,-540.43,0.00022999,2]
[312131244,1705665052941,-500.0,0.00022999,2]
[312131245,1705665052953,-500.0,0.00022999,2]
[312131246,1705665052967,-1108.79,0.00022999,2]
[312131247,1705665052978,-500.0,0.00022999,2]
[312131248,1705665052989,-500.37726585,0.00022999,2]
[312131249,1705665053001,-573.98911421,0.00022999,2]
[312131250,1705665053012,-500.0,0.00022999,2]
[312131251,1705665053024,-503.5899767,0.00022999,2]
[312131252,1705665053035,-500.0,0.00022999,2]
[312131253,1705665053048,-537.39,0.00022999,2]
[312131254,1705665053062,-500.0,0.00022999,2]
[312131255,1705665053074,-500.0,0.00022999,2]
[312131256,1705665053085,-500.0,0.00022999,2]
[312131257,1705665053096,-500.0,0.00022999,2]
[312131258,1705665053106,-500.0,0.00022999,2]
[312131259,1705665053117,-500.0,0.00022999,2]
[312131260,1705665053128,-1098.3,0.00022999,2]
[312131261,1705665053139,-700.83,0.00022999,2]
[312131262,1705665053150,-488.4181322,0.00022999,2]
[312131263,1705665053161,-500.0,0.00022999,2]
[312131264,1705665053172,-500.0,0.00022999,2]
[312131265,1705665053183,-993.18,0.00022999,2]
[312131266,1705665053194,-500.0,0.00022999,2]
[312131267,1705665053205,-1190.69,0.00022999,2]
[312131268,1705665053216,-351.61956182,0.00022999,2]
[312131269,1705665053319,-501.23266239,0.00022999,2]
[312131270,1705665053330,-909.45,0.00022999,2]
[312131271,1705665053341,-500.0,0.00022999,2]
[312131272,1705665053350,-1129.69,0.00022999,2]
[312131273,1705665053361,-501.79406976,0.00022999,2]
[312131274,1705665053373,-500.0,0.00022999,2]
[312131275,1705665053384,-500.0,0.00022999,2]
[312131276,1705665053394,-500.0,0.00022999,2]
[312131277,1705665053404,-500.0,0.00022999,2]
[312131278,1705665053415,-500.0,0.00022999,2]
[312131279,1705665053425,-1040.59,0.00022999,2]
[312131280,1705665053436,-500.0,0.00022999,2]
[312131281,1705665053447,-340.57147242,0.00022999,2]
[312131282,1705665053458,-500.0,0.00022999,2]
[312131283,1705665053469,-500.0,0.00022999,2]
[312131284,1705665053480,-500.0,0.00022999,2]
[312131285,1705665053490,-1580.73,0.00022999,2]
[312131286,1705665053501,-500.0,0.00022999,2]
[312131287,1705665053511,-500.0,0.00022999,2]
[312131288,1705665053522,-500.0,0.00022999,2]
[312131289,1705665053533,-500.0,0.00022999,2]
[312131290,1705665053544,-500.0,0.00022999,2]
[312131291,1705665053555,-500.0,0.00022999,2]
[312131292,1705665053565,-500.0,0.00022999,2]
[312131293,1705665053576,-500.0,0.00022999,2]
[312131294,1705665053587,-500.0,0.00022999,2]
[312131295,1705665053597,-500.0,0.00022999,2]
[312131296,1705665053609,-500.0,0.00022999,2]
[312131297,1705665053619,-500.0,0.00022999,2]
[312131298,1705665053631,-500.0,0.00022999,2]
[312131299,1705665053641,-500.0,0.00022999,2]
[312131300,1705665053652,-500.0,0.00022999,2]
[312131301,1705665053663,-500.0,0.00022999,2]
[312131302,1705665053673,-500.0,0.00022999,2]
[312131303,1705665053684,-188.02828498,0.00022999,2]
[312131304,1705665053695,-500.0,0.00022999,2]
[312131305,1705665053706,-935.22,0.00022999,2]
[312131306,1705665053717,-2349.98,0.00022999,2]
[312131307,1705665053728,-543.11331952,0.00022999,2]
[312131308,1705665053739,-515.99,0.00022999,2]
[312131309,1705665053750,-500.0,0.00022999,2]
[312131310,1705665053761,-2766.16,0.00022999,2]
[312131311,1705665053772,-500.0,0.00022999,2]
[312131312,1705665053782,-700.69,0.00022999,2]
[312131313,1705665053793,-570.57,0.00022999,2]
[312131314,1705665053803,-500.0,0.00022999,2]
[312131315,1705665053814,-331.59770741,0.00022999,2]
[312131316,1705665053825,-500.0,0.00022999,2]
[312131317,1705665053835,-500.0,0.00022999,2]
[312131318,1705665053846,-3813.46,0.00022999,3]
[312131319,1705665053856,-3813.46,0.00022999,3]
[312131320,1705665053867,-3813.46,0.00022999,3]
[312131321,1705665053878,-3813.46,0.00022999,3]
[312131322,1705665053892,-3813.46,0.00022999,3]
[312131323,1705665053903,-3813.46,0.00022999,3]
[312131324,1705665053914,-1121.63,0.00022999,2]
[312131325,1705665053925,-3813.46,0.00022999,3]
[312131326,1705665053935,-3813.46,0.00022999,3]
[312131327,1705665053947,-500.0,0.00022999,2]
[312131328,1705665053959,-3813.46,0.00022999,3]
[312131329,1705665053971,-531.76,0.00022999,2]
[312131330,1705665053983,-500.0,0.00022999,2]
[312131331,1705665053993,-3813.46,0.00022999,3]
[312131332,1705665054004,-500.0,0.00022999,2]
[312131333,1705665054014,-3813.46,0.00022999,3]
[312131334,1705665054026,-3813.46,0.00022999,3]
[312131335,1705665054036,-5295.86,0.00022999,2]
[312131336,1705665054047,-3813.46,0.00022999,3]
[312131337,1705665054058,-500.0,0.00022999,2]
[312131338,1705665054068,-3813.46,0.00022999,3]
[312131339,1705665054079,-500.0,0.00022999,2]
[312131340,1705665054090,-3813.46,0.00022999,3]
[312131341,1705665054102,-500.0,0.00022999,2]
[312131342,1705665054112,-635.51769626,0.00022999,2]
[312131343,1705665054124,-3813.46,0.00022999,3]
[312131344,1705665054134,-500.0,0.00022999,2]
[312131345,1705665054145,-3813.46,0.00022999,3]
[312131346,1705665054155,-3813.46,0.00022999,3]
[312131347,1705665054166,-263.7417123,0.00022999,2]
[312131348,1705665054178,-3813.46,0.00022999,3]
[312131349,1705665054189,-3813.46,0.00022999,3]
[312131350,1705665054200,-3813.46,0.00022999,3]
[312131351,1705665054211,-3813.46,0.00022999,3]
[312131352,1705665054222,-500.0,0.00022999,2]
[312131353,1705665054233,-3813.46,0.00022999,3]
[312131354,1705665054244,-549.96,0.00022999,2]
[312131355,1705665054254,-3813.60040764,0.00022999,3]
[312131356,1705665054265,-500.0,0.00022999,2]
[312131357,1705665054276,-1103.33,0.00022999,2]
[312131358,1705665054288,-1212.23,0.00022999,2]
[312131359,1705665054299,-500.0,0.00022999,2]
[312131360,1705665054310,-684.83,0.00022999,2]
[312131361,1705665054322,-503.79422958,0.00022999,2]
[312131362,1705665054333,-2528.03,0.00022999,2]
[312131363,1705665054344,-500.0,0.00022999,2]
[312131364,1705665054355,-500.0,0.00022999,2]
[312131365,1705665054367,-500.0,0.00022999,2]
[312131366,1705665054380,-500.0,0.00022999,2]
[312131367,1705665054391,-2427.13,0.00022999,2]
[312131368,1705665054402,-500.0,0.00022999,2]
[312131369,1705665054414,-500.0,0.00022999,2]
[312131370,1705665054424,-545.89,0.00022999,2]
[312131371,1705665054435,-500.0,0.00022999,2]
[312131372,1705665054446,-500.0,0.00022999,2]
[312131373,1705665054457,-500.0,0.00022999,2]
[312131374,1705665054467,-500.0,0.00022999,2]
[312131375,1705665054479,-500.0,0.00022999,2]
[312131376,1705665054490,-150.0,0.00022999,2]
[312131377,1705665054500,-546.75209429,0.00022999,2]
[312131378,1705665054511,-500.0,0.00022999,2]
[312131379,1705665054521,-502.99909268,0.00022999,2]
[312131380,1705665054532,-1392.9,0.00022999,2]
[312131381,1705665054543,-1392.9,0.00022999,2]
[312131382,1705665054553,-1392.9,0.00022999,2]
[312131383,1705665054564,-1392.9,0.00022999,2]
[312131384,1705665054575,-1928.37,0.00022999,2]
[312131385,1705665054586,-1392.9,0.00022999,2]
[312131386,1705665054597,-5646.68,0.00022999,2]
[312131387,1705665054607,-1392.9,0.00022999,2]
[312131388,1705665054618,-1392.9,0.00022999,2]
[312131389,1705665054629,-569.97,0.00022999,2]
[312131390,1705665054641,-1392.9,0.00022999,2]
[312131391,1705665054651,-1392.9,0.00022999,2]
[312131392,1705665054662,-1392.9,0.00022999,2]
[312131393,1705665054673,-1010.67,0.00022999,2]
[312131394,1705665054684,-1392.9,0.00022999,2]
[312131395,1705665054695,-1392.9,0.00022999,2]
[312131396,1705665054706,-1392.9,0.00022999,2]
[312131397,1705665054717,-1392.9,0.00022999,2]
[312131398,1705665054728,-8544.87,0.00022999,2]
[312131399,1705665054738,-1392.9,0.00022999,2]
[312131400,1705665054750,-1392.9,0.00022999,2]
[312131401,1705665054761,-3317.73,0.00022999,2]
[312131402,1705665054771,-1392.9,0.00022999,2]
[312131403,1705665054783,-1392.9,0.00022999,2]
[312131404,1705665054795,-1392.9,0.00022999,2]
[312131405,1705665054806,-1392.9,0.00022999,2]
[312131406,1705665054818,-1392.9,0.00022999,2]
[312131407,1705665054829,-1393.0283226,0.00022999,2]
[312131408,1705665054841,-500.0,0.00022999,2]
[312131409,1705665054852,-4557.75,0.00022999,2]
[312131410,1705665054864,-500.0,0.00022999,2]
[312131411,1705665054875,-668.37,0.00022999,2]
[312131412,1705665054886,-2879.99,0.00022999,2]
[312131413,1705665054897,-502.62394081,0.00022999,2]
[312131414,1705665054907,-500.0,0.00022999,2]
[312131415,1705665054918,-500.0,0.00022999,2]
[312131416,1705665054933,-500.0,0.00022999,2]
[312131417,1705665054944,-6885.59,0.00022999,2]
[312131418,1705665054955,-12040.41,0.00022999,2]
[312131419,1705665054966,-503.12804837,0.00022999,2]
[312131420,1705665054978,-2139.41,0.00022999,2]
[312131421,1705665054991,-500.0,0.00022999,2]
[312131422,1705665055004,-500.0,0.00022999,2]
[312131423,1705665055016,-500.0,0.00022999,2]
[312131424,1705665055028,-500.0,0.00022999,2]
[312131425,1705665055039,-812.25,0.00022999,2]
[312131426,1705665055050,-4468.39,0.00022999,2]
[312131427,1705665055062,-500.0,0.00022999,2]
[312131428,1705665055072,-504.93214549,0.00022999,2]
[312131429,1705665055083,-560.98,0.00022999,2]
[312131430,1705665055095,-1328.37,0.00022999,2]
[312131431,1705665055106,-179.14055177,0.00022999,2]
[312131432,1705665055117,-500.0,0.00022999,2]
[312131433,1705665055128,-500.0,0.00022999,2]
[312131434,1705665055141,-500.0,0.00022999,2]
[312131435,1705665055152,-504.18318355,0.00022999,2]
[312131436,1705665055162,-500.0,0.00022999,2]
[312131437,1705665055173,-595.32,0.00022999,2]
[312131438,1705665055184,-500.0,0.00022999,2]
[312131439,1705665055197,-500.0,0.00022999,2]
[312131440,1705665055209,-733.97,0.00022999,2]
[312131441,1705665055220,-500.0,0.00022999,2]
[312131442,1705665055232,-525.74949102,0.00022999,2]
[312131443,1705665055242,-500.0,0.00022999,2]
[312131444,1705665055252,-517.54,0.00022999,2]
[312131445,1705665055262,-4648.76,0.00022999,2]
[312131446,1705665055274,-500.0,0.00022999,2]
[312131447,1705665055285,-1315.39,0.00022999,2]
[312131448,1705665055297,-1091.51,0.00022999,2]
[312131449,1705665055308,-1052.85,0.00022999,2]
[312131450,1705665055320,-568.35471621,0.00022999,2]
[312131451,1705665055331,-3490.17,0.00022999,2]
[312131452,1705665055342,-500.0,0.00022999,2]
[312131453,1705665055353,-8526.72,0.00022999,2]
[312131454,1705665055364,-8116.99,0.00022999,2]
[312131455,1705665055375,-500.0,0.00022999,2]
[312131456,1705665055387,-500.0,0.00022999,2]
[312131457,1705665055398,-614.27,0.00022999,2]
[312131458,1705665055410,-3302.58,0.00022999,2]
[312131459,1705665055421,-500.0,0.00022999,2]
[312131460,1705665055431,-1427.84,0.00022999,2]
[312131461,1705665055443,-500.0,0.00022999,2]
[312131462,1705665055454,-500.0,0.00022999,2]
[312131463,1705665055465,-500.0,0.00022999,2]
[312131464,1705665055477,-500.0,0.00022999,2]
[312131465,1705665055489,-1870.14,0.00022999,2]
[312131466,1705665055501,-500.0,0.00022999,2]
[312131467,1705665055512,-500.0,0.00022999,2]
[312131468,1705665055524,-687.03,0.00022999,2]
[312131469,1705665055535,-689.04,0.00022999,2]
[312131470,1705665055546,-500.0,0.00022999,2]
[312131471,1705665055560,-549.73,0.00022999,2]
[312131472,1705665055572,-4928.86,0.00022999,2]
[312131473,1705665055583,-500.0,0.00022999,2]
[312131474,1705665055595,-500.0,0.00022999,2]
[312131475,1705665055607,-2214.48,0.00022999,2]
[312131476,1705665055618,-502.14157306,0.00022999,2]
[312131477,1705665055630,-1049.36,0.00022999,2]
[312131478,1705665055641,-500.0,0.00022999,2]
[312131479,1705665055652,-1254.42,0.00022999,2]
[312131480,1705665055664,-500.0,0.00022999,2]
[312131481,1705665055675,-500.0,0.00022999,2]
[312131482,1705665055687,-500.0,0.00022999,2]
[312131483,1705665055699,-516.47852596,0.00022999,2]
[312131484,1705665055712,-532.49750893,0.00022999,2]
[312131485,1705665055723,-500.0,0.00022999,2]
[312131486,1705665055735,-1634.66,0.00022999,2]
[312131487,1705665055746,-500.0,0.00022999,2]
[312131488,1705665055757,-500.0,0.00022999,2]
[312131489,1705665055769,-514.43137315,0.00022999,2]
[312131490,1705665055780,-500.0,0.00022999,2]
[312131491,1705665055791,-500.0,0.00022999,2]
[312131492,1705665055802,-2375.02,0.00022999,2]
[312131493,1705665055812,-504.46688153,0.00022999,2]
[312131494,1705665055824,-1523.0,0.00022999,2]
[312131495,1705665055835,-500.0,0.00022999,2]
[312131496,1705665055847,-1566.43,0.00022999,2]
[312131497,1705665055857,-500.0,0.00022999,2]
[312131498,1705665055869,-500.0,0.00022999,2]
[312131499,1705665055880,-500.0,0.00022999,2]
[312131500,1705665055892,-294.98045603,0.00022999,2]
[312131501,1705665055903,-500.0,0.00022999,2]
[312131502,1705665055914,-1605.88,0.00022999,2]
[312131503,1705665055925,-500.0,0.00022999,2]
[312131504,1705665055935,-732.58,0.00022999,2]
[312131505,1705665055947,-5641.0,0.00022999,2]
[312131506,1705665055958,-759.82,0.00022999,2]
[312131507,1705665055974,-614.60995269,0.00022999,2]
[312131508,1705665055985,-500.0,0.00022999,2]
[312131509,1705665055998,-3151.54,0.00022999,2]
[312131510,1705665056011,-500.0,0.00022999,2]
[312131511,1705665056022,-150.0,0.00022999,2]
[312131512,1705665056033,-3586.71,0.00022999,2]
[312131513,1705665056044,-150.0,0.00022999,2]
[312131514,1705665056055,-703.38,0.00022999,2]
[312131515,1705665056066,-503.0356236,0.00022999,2]
[312131516,1705665056078,-1052.15,0.00022999,2]
[312131517,1705665056088,-500.0,0.00022999,2]
[312131518,1705665056100,-150.0,0.00022999,2]
[312131519,1705665056111,-500.0,0.00022999,2]
[312131520,1705665056122,-150.0,0.00022999,2]
[312131521,1705665056134,-500.0,0.00022999,2]
[312131522,1705665056145,-500.0,0.00022999,2]
[312131523,1705665056157,-500.0,0.00022999,2]
[312131524,1705665056167,-500.0,0.00022999,2]
[312131525,1705665056181,-3039.77,0.00022999,2]
[312131526,1705665056193,-500.0,0.00022999,2]
[312131527,1705665056205,-1374.74,0.00022999,2]
[312131528,1705665056216,-500.0,0.00022999,2]
[312131529,1705665056227,-530.54,0.00022999,2]
[312131530,1705665056239,-504.63087933,0.00022999,2]
[312131531,1705665056249,-500.0,0.00022999,2]
[312131532,1705665056260,-500.0,0.00022999,2]
[312131533,1705665056272,-1532.54,0.00022999,2]
[312131534,1705665056282,-1381.04,0.00022999,2]
[312131535,1705665056293,-508.11442773,0.00022999,2]
[312131536,1705665056305,-1306.88,0.00022999,5]
[312131537,1705665056317,-930.2,0.00022999,2]
[312131538,1705665056329,-500.0,0.00022999,2]
[312131539,1705665056339,-106796.26708022,0.00022999,3]
[312131540,1705665057415,-636952.39244181,0.00022999,3]
[312131541,1705665057429,-173551.54317071,0.00023,2]
[312131542,1705665057442,-369332.27459592,0.00023,2]
[312131543,1705665058838,-258.03900375,0.00022998,2]
[312131544,1705665059623,-500.0,0.00022997,2]
[312131545,1705665059634,-500.0,0.00022997,2]
[312131546,1705665059645,-241.96099625,0.00022998,2]
[312131547,1705665059656,-500.0,0.00022998,2]
[312131548,1705665059667,-4457.19,0.00022999,2]
[312131549,1705665059678,-500.0,0.00022999,2]
[312131550,1705665059689,-12110.6704464,0.00023,2]
[312131551,1705665061034,-500.0,0.00022996,2]
[312131552,1705665061046,-500.0,0.00022998,2]
[312131553,1705665061057,-500.0,0.00022998,2]
[312131554,1705665061068,-6787.6,0.00023,2]
[312131555,1705665203489,-151.27,0.00020154,2]
[312131556,1705665203520,-98.73,0.00022182,2]
[312131557,1705665204060,-151.27,0.00022182,2]
[312131558,1705665207266,98.73,0.00021994,2]
[312131559,1705665389431,-361.26,0.00021973,2]
[312131560,1705665389458,-3191.26397536,0.00021993,2]
[312131561,1705665389483,-3195.74644902,0.00021994,2]
[312131562,1705665389516,-771.72957562,0.00021994,2]
[312131563,1705665617861,151.27,0.00019839,2]
[312131564,1705665617892,6.57,0.00019839,2]
[312131565,1705665865671,153.45689902,0.0002,2]
[312131566,1705666204323,-207.69434348,0.00019728,2]
[312131567,1705666204353,-169.33,0.00019728,2]
[312131568,1705666204385,-207.69434348,0.00019999,2]
[312131569,1705666204414,-150.0,0.00019999,2]
[312131570,1705666204443,-9257.82441402,0.0002,2]
[312131605,1705666238273,-150.0,0.0002,2]
[312131606,1705666238286,-734.71868696,0.0002,2]
[312131607,1705666238298,-205.0,0.00020689,2]
[312131608,1705666238311,-11330.16400568,0.00020695,5]
[312131609,1705666238324,-500.0,0.00021598,2]
[312131610,1705666238336,-436.5,0.00021613,2]
[312131611,1705666238347,-177.32,0.00021615,2]
[312131612,1705666238359,-825.91,0.00021641,2]
[312131613,1705666238371,-173.85,0.00021753,2]
[312131614,1705666238384,-174.09,0.00021753,2]
[312131615,1705666238397,-161.58,0.00021873,2]
[312131616,1705666238410,-155.45,0.00021888,2]
[312131617,1705666238423,-250.0,0.000219,2]
[312131618,1705666238436,-432.05,0.00021912,2]
[312131619,1705666238449,-250.0,0.00021918,2]
[312131620,1705666238461,-173.4,0.00021957,2]
[312131621,1705666238473,-169.33,0.00021992,2]
[312131622,1705666238487,-2768.1218594,0.00021993,2]
[312131623,1705666238498,-3195.74644902,0.00021994,2]
[312131624,1705666238514,-210.0,0.00021999,2]
[312131625,1705666238526,-550.0,0.00022,3]
[312131626,1705666238539,-432.05,0.00022085,2]
[312131627,1705666238551,-400.0,0.000221,8]
[312131628,1705666238563,-438719.82,0.00022131,3]
[312131629,1705666238576,-150.45,0.00022169,2]
[312131630,1705666238589,-900.0,0.000222,8]
[312131631,1705666238602,-432.05,0.00022258,2]
[312131632,1705666238614,-1253.32399225,0.00022296,2]
[312131633,1705666238626,-1300.0,0.000223,8]
[312131634,1705666238644,-1800.0,0.000224,8]
[312131635,1705666238656,-1282.35277982,0.00022431,3]
[312131636,1705666238669,-432.05,0.00022431,2]
[312131637,1705666238681,-8452.14552393,0.000225,2]
[312131638,1705666238694,-2300.0,0.000225,8]
[312131639,1705666238709,-1253.32399225,0.00022525,2]
[312131640,1705666238721,-150.45,0.00022586,2]
[312131641,1705666238733,-436.5,0.00022591,2]
[312131642,1705666238745,-400.0,0.000226,8]
[312131643,1705666238757,-432.05,0.00022604,2]
[312131644,1705666238771,-400.0,0.000227,8]
[312131645,1705666238783,-2712.45923272,0.0002277,2]
[312131646,1705666238796,-432.05,0.00022777,2]
[312131647,1705666238808,-400.0,0.000228,8]
[312131648,1705666238822,-416.0374,0.0002288,2]
[312131649,1705666238834,-6015.70142283,0.00022897,2]
[312131650,1705666238847,-6015.70142281,0.00022897,2]
[312131651,1705666238860,-6015.70142281,0.00022898,2]
[312131652,1705666238873,-6015.70142281,0.00022898,2]
[312131653,1705666238886,-558.98817842,0.00022898,2]
[312131654,1705666238899,-6015.70142281,0.00022898,2]
[312131655,1705666238912,-6015.70142281,0.00022898,2]
[312131656,1705666238925,-6015.70142281,0.00022899,2]
[312131657,1705666238938,-6015.70142281,0.00022899,2]
[312131658,1705666238950,-6015.70142281,0.00022899,2]
[312131659,1705666238963,-6015.70142281,0.00022899,2]
[312131660,1705666238976,-6015.70142281,0.000229,2]
[312131661,1705666238987,-499.99,0.000229,2]
[312131662,1705666238999,-16000.0,0.000229,2]
[312131663,1705666239010,-154.86226234,0.000229,2]
[312131664,1705666239021,-6015.70142281,0.000229,2]
[312131665,1705666239033,-400.0,0.000229,8]
[312131666,1705666239045,-558.98817835,0.000229,2]
[312131667,1705666239058,-558.98817835,0.00022903,2]
[312131668,1705666239070,-558.98817835,0.00022905,2]
[312131669,1705666239082,-558.98817835,0.00022907,2]
[312131670,1705666239095,-558.98817835,0.00022909,2]
[312131671,1705666239108,-558.98817835,0.00022912,2]
[312131672,1705666239120,-558.98817835,0.00022914,2]
[312131673,1705666239132,-432.05,0.0002295,2]
[312131674,1705666239144,-12068.94,0.00022979,2]
[312131675,1705666239160,-1901.08,0.00022979,2]
[312131676,1705666239172,-975.74,0.00022979,2]
[312131677,1705666239184,-2659.65,0.00022979,2]
[312131678,1705666239197,-500.0,0.00022979,2]
[312131679,1705666239209,-564.95,0.00022979,2]
[312131680,1705666239221,-500.0,0.00022979,2]
[312131681,1705666239234,-1625.11,0.00022979,2]
[312131682,1705666239248,-1446.64,0.00022979,2]
[312131683,1705666239259,-2115.14,0.00022979,2]
[312131684,1705666239271,-1533.66,0.00022979,2]
[312131685,1705666239284,-500.0,0.00022979,2]
[312131686,1705666239296,-5142.49,0.00022979,2]
[312131687,1705666239308,-18985.1,0.00022979,2]
[312131688,1705666239319,-689.2,0.00022979,2]
[312131689,1705666239332,-2678.36,0.00022979,2]
[312131690,1705666239344,-1927.81,0.00022979,2]